bitfinex/quotes_BTCUSD_20251217
["timestamp","ask_amount","ask_price","bid_price","bid_amount"]
[1765981614910,0.22758306,87880.0,87879.0,0.01641]
[1765981615092,0.22758306,87880.0,87879.0,0.1314134]
[1765981616056,0.22758306,87880.0,87879.0,0.1621834]
[1765981617271,0.22758306,87880.0,87879.0,0.1641834]
[1765981617468,0.22758306,87880.0,87879.0,0.1334134]
[1765981618254,0.22758306,87880.0,87879.0,0.1344134]
[1765981618969,0.22758098,87881.0,87880.0,0.11363986]
[1765981619167,0.22756909,87886.0,87885.0,0.11363986]
[1765981619621,0.23894746,87886.0,87885.0,0.11363986]
[1765981619830,0.01137772,87891.0,87890.0,0.11363986]
[1765981620027,0.2389323,87891.0,87890.0,0.11363986]
[1765981621352,0.2493223,87891.0,87890.0,0.11363986]
[1765981621565,0.22756753,87886.0,87885.0,0.00136354]
[1765981621836,0.22756753,87886.0,87885.0,0.1150034]
[1765981623147,0.24964753,87886.0,87885.0,0.1160034]
[1765981623484,0.22756753,87886.0,87885.0,0.1160034]
[1765981624494,0.22756566,87887.0,87885.0,0.1160034]
[1765981624495,0.03419717,87895.0,87894.0,0.0533]
[1765981624695,0.01137565,87907.0,87900.0,0.39447114]
[1765981625054,0.24048509,87908.0,87900.0,0.39583468]
[1765981625227,0.01137578,87906.0,87900.0,0.39583468]
[1765981625795,0.00159688,87908.0,87900.0,0.39583468]
[1765981626194,0.00159688,87908.0,87900.0,0.34253468]
[1765981626430,0.00159688,87908.0,87900.0,0.39683468]
[1765981627619,0.00159688,87908.0,87900.0,0.39883468]
[1765981627979,0.00159688,87908.0,87900.0,0.39583468]
[1765981628182,0.0129724,87908.0,87900.0,0.39783468]
[1765981628362,0.0129724,87908.0,87900.0,0.40083468]
[1765981629160,0.00159688,87908.0,87900.0,0.40083468]
[1765981629734,0.00159688,87908.0,87900.0,0.1200034]
[1765981629735,0.22790347,87901.0,87900.0,0.1200034]
[1765981630091,0.27728347,87901.0,87900.0,0.11863986]
[1765981631003,0.27728347,87901.0,87900.0,0.11663986]
[1765981631203,0.22756494,87887.0,87886.0,0.14969986]
[1765981631426,0.22756494,87887.0,87886.0,0.18193986]
[1765981631993,0.22756294,87888.0,87886.0,0.0683]
[1765981632197,0.23893774,87889.0,87888.0,0.11363986]
[1765981632361,0.22755976,87889.0,87888.0,0.11363986]
[1765981632577,0.01137798,87889.0,87888.0,0.11363986]
[1765981632785,0.23893774,87889.0,87888.0,0.11363986]
[1765981633190,0.23893774,87889.0,87886.0,0.11563986]
[1765981633191,0.24805494,87887.0,87886.0,0.11563986]
[1765981633782,0.24805494,87887.0,87886.0,0.11763986]
[1765981633783,0.22756494,87887.0,87886.0,0.11763986]
[1765981634038,0.22756494,87887.0,87886.0,0.11563986]
[1765981634220,0.22756494,87887.0,87886.0,0.11363986]
[1765981634997,0.22759083,87877.0,87876.0,0.01641]
[1765981635195,0.22758056,87881.0,87880.0,0.11363986]
[1765981635196,0.23895958,87881.0,87880.0,0.11363986]
[1765981635727,0.23895958,87881.0,87859.0,0.48338187]
[1765981635728,0.23895958,87881.0,87871.0,0.01583]
[1765981635729,0.01137993,87874.0,87871.0,0.01583]
[1765981635907,0.01137993,87874.0,87864.0,0.11388855]
[1765981635908,0.24811191,87865.0,87864.0,0.11388855]
[1765981636106,0.22762191,87865.0,87864.0,0.11388855]
[1765981637635,0.22762191,87865.0,87864.0,0.11588855]
[1765981638642,0.22762191,87865.0,87864.0,0.11788855]
[1765981639262,0.24811191,87865.0,87864.0,0.11788855]
[1765981640592,0.27624191,87865.0,87864.0,0.00024869]
[1765981640750,0.28232093,87865.0,87864.0,0.11388855]
[1765981641355,0.31038093,87865.0,87864.0,0.11388855]
[1765981641793,0.01138044,87870.0,87865.0,0.03224]
[1765981641992,0.23898461,87872.0,87871.0,0.11363986]
[1765981642225,0.25947461,87872.0,87871.0,0.11363986]
[1765981642418,0.28745461,87872.0,87871.0,0.11363986]
[1765981642701,0.28745461,87872.0,87865.0,0.1150034]
[1765981642702,0.22761932,87866.0,87865.0,0.1150034]
[1765981643323,0.24810932,87866.0,87865.0,0.1150034]
[1765981643750,0.22761932,87866.0,87865.0,0.1150034]
[1765981643953,0.22761932,87866.0,87865.0,0.1160034]
[1765981643954,0.24810932,87866.0,87865.0,0.1160034]
[1765981644326,0.27593932,87866.0,87865.0,0.11463986]
[1765981644859,0.27593932,87866.0,87865.0,0.11363986]
[1765981645778,0.27593932,87866.0,87864.0,0.00024869]
[1765981645779,0.56649191,87865.0,87864.0,0.00024869]
[1765981646874,0.56644005,87858.0,87857.0,0.0004]
[1765981647080,0.58448005,87858.0,87857.0,0.00051267]
[1765981647235,0.63026681,87858.0,87857.0,0.00051267]
[1765981647604,0.63026681,87858.0,87857.0,1e-08]
[1765981647605,2.86521022,87858.0,87857.0,1e-08]
[1765981647897,2.86521022,87858.0,87853.0,0.0004]
[1765981647898,2.86521022,87858.0,87844.0,1e-08]
[1765981647899,0.56640374,87845.0,87844.0,1e-08]
[1765981648032,0.58444374,87845.0,87844.0,1e-08]
[1765981650514,0.56940374,87845.0,87844.0,1e-08]
[1765981650716,0.52337374,87845.0,87844.0,1e-08]
[1765981650919,0.54141374,87845.0,87844.0,1e-08]
[1765981651093,0.52037374,87845.0,87844.0,0.05691993]
[1765981651312,0.24771374,87845.0,87844.0,1e-08]
[1765981651526,0.24971374,87845.0,87844.0,1e-08]
[1765981652108,0.24771374,87845.0,87844.0,1e-08]
[1765981652713,0.24871374,87845.0,87844.0,1e-08]
[1765981652864,0.24671374,87845.0,87844.0,1e-08]
[1765981653077,0.29440374,87845.0,87844.0,0.00062188]
[1765981653255,0.29540374,87845.0,87844.0,0.00062188]
[1765981653454,0.27736374,87845.0,87844.0,0.00062188]
[1765981653705,0.29540374,87845.0,87844.0,0.00062188]
[1765981654062,0.32962103,87845.0,87844.0,0.00062188]
[1765981654681,0.30242103,87845.0,87844.0,0.00062188]
[1765981655493,0.32948103,87845.0,87844.0,0.00062188]
[1765981656074,0.30242103,87845.0,87844.0,0.00062188]
[1765981659662,0.03621729,87845.0,87844.0,0.02170542]
[1765981659860,0.22967374,87845.0,87844.0,0.13534528]
[1765981660060,0.22967374,87845.0,87844.0,0.11562528]
[1765981660305,0.22967374,87845.0,87844.0,0.00198542]
[1765981660510,0.22967374,87845.0,87844.0,0.11562528]
[1765981661906,0.24950374,87845.0,87844.0,0.11562528]
[1765981662311,0.27604374,87845.0,87844.0,0.00062188]
[1765981665246,0.27604374,87845.0,87844.0,0.11426174]
[1765981665247,0.24771374,87845.0,87844.0,0.11426174]
[1765981665436,0.22967374,87845.0,87844.0,0.16292174]
[1765981665749,0.22967374,87845.0,87844.0,0.00062188]
[1765981666090,0.22967374,87845.0,87844.0,0.11426174]
[1765981666636,0.002,87845.0,87844.0,0.11426174]
[1765981666990,0.002,87845.0,87844.0,0.16428528]
[1765981667370,0.002,87845.0,87844.0,0.39196161]
[1765981667371,0.001,87845.0,87844.0,0.39196161]
[1765981667687,0.22766023,87851.0,87844.0,0.39196161]
[1765981667688,0.01138109,87865.0,87863.0,0.11363986]
[1765981667833,0.01138109,87865.0,87861.0,0.01585]
[1765981667834,0.23900546,87865.0,87864.0,0.13335986]
[1765981668418,0.0113807,87868.0,87867.0,0.13335986]
[1765981668552,0.23910723,87868.0,87867.0,0.13335986]
[1765981669804,0.23910723,87868.0,87867.0,0.11363986]
[1765981670368,0.28490723,87868.0,87867.0,0.11463986]
[1765981670588,0.25893723,87868.0,87867.0,0.11463986]
[1765981671313,0.22762191,87865.0,87864.0,0.11505183]
[1765981671968,0.02100083,87867.0,87858.0,0.01585]
[1765981671969,0.22763746,87859.0,87858.0,0.01585]
[1765981672161,0.22764264,87857.0,87854.0,0.01138252]
[1765981672338,0.22764264,87857.0,87856.0,0.113937]
[1765981672645,0.01138122,87864.0,87861.0,0.06451]
[1765981672646,0.01138148,87862.0,87861.0,0.06451]
[1765981672825,0.00011239,87868.0,87867.0,0.38996502]
[1765981673708,0.22772653,87868.0,87867.0,0.13340829]
[1765981674318,0.00011239,87868.0,87867.0,0.13440829]
[1765981674449,0.22772653,87868.0,87867.0,0.13540829]
[1765981674654,0.22772653,87868.0,87867.0,0.11568829]
[1765981675526,0.22772653,87868.0,87867.0,0.11468829]
[1765981675727,0.22772653,87868.0,87867.0,0.11368829]
[1765981676849,0.23870969,87862.0,87861.0,0.05818361]
[1765981677061,0.23870969,87862.0,87861.0,0.00136354]
[1765981677227,0.22764264,87857.0,87856.0,0.113937]
[1765981677444,0.22764264,87857.0,87856.0,0.00024871]
[1765981677646,0.24747264,87857.0,87856.0,0.00024871]
[1765981678497,0.27475264,87857.0,87856.0,0.00024871]
[1765981678678,0.56545264,87857.0,87856.0,0.00024871]
[1765981678896,0.59966545,87857.0,87856.0,0.00024871]
[1765981679540,0.56545264,87857.0,87856.0,0.00024871]
[1765981679866,0.56645264,87857.0,87856.0,0.00024871]
[1765981680221,0.56745264,87857.0,87856.0,0.00024871]
[1765981681464,0.56745264,87857.0,87844.0,1e-08]
[1765981681465,2.51837374,87845.0,87844.0,1e-08]
[1765981681614,2.6513339,87845.0,87844.0,1e-08]
[1765981682049,2.6711639,87845.0,87844.0,0.00037316]
[1765981682404,2.6711639,87845.0,87836.0,0.0004]
[1765981682405,0.68013463,87837.0,87836.0,0.0004]
[1765981682648,2.68013463,87837.0,87836.0,0.0004]
[1765981683034,2.68469886,87837.0,87836.0,0.0004]
[1765981683234,2.68469886,87837.0,87834.0,0.0004]
[1765981683235,0.68006982,87835.0,87834.0,1e-08]
[1765981683435,0.68006982,87835.0,87818.0,0.0004]
[1765981683436,0.56519114,87819.0,87818.0,1e-08]
[1765981683660,2.58323114,87819.0,87818.0,0.0001127]
[1765981683856,2.70878835,87819.0,87818.0,0.0001127]
[1765981684059,2.72038516,87819.0,87818.0,0.0001127]
[1765981684607,0.57613449,87810.0,87801.0,0.0004]
[1765981684815,0.69105465,87810.0,87801.0,0.0004]
[1765981685012,0.63996125,87810.0,87801.0,0.0004]
[1765981685465,0.68004243,87807.0,87801.0,0.0004]
[1765981685650,0.6800554,87802.0,87801.0,0.0004]
[1765981685783,0.6800554,87802.0,87801.0,0.00051277]
[1765981686597,0.56513524,87802.0,87801.0,0.00051277]
[1765981686806,0.56713524,87802.0,87801.0,0.00051277]
[1765981687026,0.002,87802.0,87801.0,0.1641246]
[1765981687467,0.002,87802.0,87801.0,0.18690338]
[1765981688560,0.005,87802.0,87801.0,0.18690338]
[1765981688759,0.003,87802.0,87801.0,0.18690338]
[1765981688962,0.001,87802.0,87801.0,0.18824122]
[1765981689388,0.001,87802.0,87801.0,0.19024122]
[1765981689588,0.02942718,87818.0,87817.0,0.11368829]
[1765981689989,0.23914138,87815.0,87811.0,0.12507638]
[1765981690155,0.02942718,87818.0,87816.0,0.05691992]
[1765981690156,0.23913364,87817.0,87816.0,0.05691992]
[1765981690559,0.23913849,87816.0,87813.0,0.01138783]
[1765981690759,0.23913849,87816.0,87815.0,0.05691992]
[1765981690896,0.23914133,87815.0,87814.0,0.05691992]
[1765981691112,0.23914133,87815.0,87812.0,0.01138796]
[1765981691461,0.25717325,87818.0,87799.0,0.22819066]
[1765981691462,0.01138822,87810.0,87799.0,0.22819066]
[1765981691764,0.25920271,87810.0,87809.0,0.11368829]
[1765981692116,0.03143822,87810.0,87809.0,0.11368829]
[1765981692347,0.22778524,87802.0,87801.0,0.1155646]
[1765981693096,0.22778524,87802.0,87801.0,0.11420106]
[1765981693229,0.24783524,87802.0,87801.0,0.11420106]
[1765981693426,0.22778524,87802.0,87801.0,0.11420106]
[1765981694036,0.24783524,87802.0,87801.0,0.11420106]
[1765981695125,0.24783524,87802.0,87801.0,0.11520106]
[1765981695406,0.25720643,87806.0,87803.0,0.23916889]
[1765981695407,0.01804,87806.0,87803.0,0.23916889]
[1765981695559,0.2277621,87811.0,87809.0,0.11368829]
[1765981695786,0.25719015,87812.0,87805.0,0.23916543]
[1765981695787,0.01138835,87809.0,87808.0,0.13423829]
[1765981695990,0.01138835,87809.0,87808.0,0.11368829]
[1765981696195,0.23915815,87808.0,87807.0,0.11368829]
[1765981696803,0.22778005,87804.0,87803.0,0.11605183]
[1765981697010,0.24783005,87804.0,87803.0,0.001]
[1765981697212,0.01138835,87809.0,87808.0,0.02055]
[1765981697414,0.02557,87828.0,87812.0,0.02055]
[1765981697415,0.01804,87813.0,87812.0,0.02055]
[1765981697614,0.24579671,87813.0,87812.0,0.16583829]
[1765981697813,0.24579671,87813.0,87812.0,0.13423829]
[1765981698013,0.24579671,87813.0,87812.0,0.11368829]
[1765981698839,0.23913364,87817.0,87816.0,0.09198992]
[1765981699057,0.23913364,87817.0,87816.0,0.05691992]
[1765981700267,0.22775671,87813.0,87812.0,0.11705183]
[1765981700468,0.24780671,87813.0,87812.0,0.00336354]
[1765981700670,0.22775671,87813.0,87812.0,0.11705183]
[1765981701195,0.22775671,87813.0,87812.0,0.11605183]
[1765981701366,0.22775671,87813.0,87812.0,0.11505183]
[1765981701569,0.22775671,87813.0,87812.0,0.11604731]
[1765981702272,0.22775671,87813.0,87812.0,0.00199548]
[1765981702273,0.24780671,87813.0,87812.0,0.00199548]
[1765981702473,0.27301671,87813.0,87812.0,0.00199548]
[1765981702696,0.24780671,87813.0,87812.0,0.00199548]
[1765981702872,0.24780671,87813.0,87812.0,0.00299548]
[1765981703245,0.24780671,87813.0,87812.0,0.00199548]
[1765981703417,0.22775671,87813.0,87812.0,0.00199548]
[1765981703973,0.27286671,87813.0,87812.0,0.00199548]
[1765981704197,0.27286671,87813.0,87812.0,0.00099548]
[1765981704705,0.24780671,87813.0,87812.0,0.00099548]
[1765981705033,0.31858347,87813.0,87812.0,0.00099548]
[1765981705329,0.27279671,87813.0,87812.0,0.00099548]
[1765981705528,0.60928347,87813.0,87812.0,0.00099548]
[1765981705729,0.61028347,87813.0,87812.0,0.00099548]
[1765981706208,0.52402137,87813.0,87812.0,0.00099548]
[1765981706323,0.23232137,87813.0,87812.0,0.00099548]
[1765981706531,0.22773476,87822.0,87812.0,0.00099548]
[1765981706532,2.23907145,87840.0,87839.0,0.03507]
[1765981706756,0.01138394,87843.0,87842.0,0.16583829]
[1765981706949,0.01138394,87843.0,87842.0,0.16720183]
[1765981707170,1.0,87850.0,87849.0,0.11368829]
[1765981707376,1.0,87850.0,87849.0,0.16720183]
[1765981707866,1.00011237,87850.0,87849.0,0.16720183]
[1765981708356,1.00011237,87850.0,87849.0,0.13560183]
[1765981708727,1.00011237,87850.0,87849.0,0.16720183]
[1765981709130,1.00011237,87850.0,87849.0,0.16820183]
[1765981709520,1.00011237,87850.0,87849.0,0.13660183]
[1765981709738,1.00011237,87850.0,87849.0,0.11605183]
[1765981710006,1.00011237,87850.0,87849.0,0.13660183]
[1765981710210,1.00011237,87850.0,87849.0,0.11605183]
[1765981710782,1.00011237,87850.0,87849.0,0.11705183]
[1765981710971,1.00011237,87850.0,87849.0,0.11568829]
[1765981711355,1.00011237,87850.0,87849.0,0.16783829]
[1765981712240,1.00011237,87850.0,87849.0,0.13623829]
[1765981712645,1.00011237,87850.0,87849.0,0.16783829]
[1765981713322,1.00011237,87850.0,87849.0,0.16920183]
[1765981714307,0.00011237,87850.0,87849.0,0.16920183]
[1765981714720,0.00011237,87850.0,87849.0,0.16820183]
[1765981714890,0.00011237,87850.0,87849.0,0.13560183]
[1765981715432,0.00011237,87850.0,87849.0,0.16977183]
[1765981715609,0.00011237,87850.0,87849.0,0.16777183]
[1765981716661,0.00011237,87850.0,87849.0,0.16977183]
[1765981716995,0.00011237,87850.0,87849.0,0.16677183]
[1765981717413,0.00011237,87850.0,87849.0,0.11705183]
[1765981717615,0.00011237,87850.0,87849.0,0.004]
[1765981717801,0.00011237,87850.0,87849.0,0.11768829]
[1765981718317,0.00011237,87850.0,87849.0,0.11368829]
[1765981718680,0.00011237,87850.0,87849.0,0.11668829]
[1765981718990,0.00011237,87850.0,87849.0,0.11468829]
[1765981719318,0.00011237,87850.0,87849.0,0.001]
[1765981719319,0.01948237,87850.0,87849.0,0.001]
[1765981719522,0.04201981,87850.0,87849.0,0.001]
[1765981719718,0.00011237,87850.0,87849.0,0.001]
[1765981719904,0.03752237,87850.0,87849.0,0.001]
[1765981720106,0.06005981,87850.0,87849.0,0.001]
[1765981720309,0.42048657,87850.0,87849.0,0.002]
[1765981720517,0.39794913,87850.0,87849.0,0.002]
[1765981720981,0.00715,87837.0,87836.0,0.11393709]
[1765981721169,0.22769188,87838.0,87837.0,0.11368829]
[1765981721372,0.24573188,87838.0,87837.0,0.11368829]
[1765981722567,0.24573188,87838.0,87837.0,0.11468829]
[1765981723093,0.26510188,87838.0,87837.0,0.001]
[1765981723681,0.26510188,87838.0,87837.0,0.002]
[1765981724074,0.26510188,87838.0,87837.0,0.05891992]
[1765981724278,0.26510188,87838.0,87837.0,0.001]
[1765981724478,0.22769447,87837.0,87836.0,0.11393709]
[1765981725096,0.24706447,87837.0,87836.0,0.11393709]
[1765981725460,0.24706447,87837.0,87836.0,0.0002488]
[1765981726456,0.27058447,87837.0,87836.0,0.0002488]
[1765981726611,0.28048447,87837.0,87836.0,0.0002488]
[1765981726979,0.3809204,87837.0,87836.0,0.0002488]
[1765981727207,0.28048447,87837.0,87836.0,0.0002488]
[1765981727381,0.61697123,87837.0,87836.0,0.0002488]
[1765981727583,0.61697123,87837.0,87836.0,0.0002088]
[1765981727875,0.61797123,87837.0,87836.0,0.0002088]
[1765981728246,0.62097123,87837.0,87836.0,0.0002088]
[1765981728481,0.61997123,87837.0,87836.0,0.0002088]
[1765981728688,0.62197123,87837.0,87836.0,0.0002088]
[1765981729273,0.64001123,87837.0,87836.0,0.0002088]
[1765981729469,0.57318447,87837.0,87836.0,0.0002088]
[1765981729635,0.59122447,87837.0,87836.0,0.0002088]
[1765981729833,0.59322447,87837.0,87836.0,0.0002088]
[1765981730035,0.59122447,87837.0,87836.0,0.0002088]
[1765981730344,0.59222447,87837.0,87836.0,0.0002088]
[1765981730780,0.59122447,87837.0,87836.0,0.0002088]
[1765981731297,0.59022447,87837.0,87836.0,0.0002088]
[1765981731670,0.54866447,87837.0,87836.0,0.0002088]
[1765981731871,0.56870447,87837.0,87836.0,0.0002088]
[1765981732069,0.55066447,87837.0,87836.0,0.0002088]
[1765981732279,0.56870447,87837.0,87836.0,0.0002088]
[1765981732689,0.55066447,87837.0,87836.0,0.0002088]
[1765981732890,0.25863447,87837.0,87836.0,0.11389709]
[1765981733279,0.24059447,87837.0,87836.0,0.11389709]
[1765981733479,0.23069447,87837.0,87836.0,0.11389709]
[1765981733660,0.23069447,87837.0,87836.0,0.13263709]
[1765981734284,0.23069447,87837.0,87836.0,0.11389709]
[1765981734806,0.22769447,87837.0,87836.0,0.11389709]
[1765981734983,0.22769447,87837.0,87836.0,0.11489709]
[1765981736759,0.22769447,87837.0,87836.0,0.11389709]
[1765981737236,0.22769447,87837.0,87836.0,0.11489709]
[1765981737615,0.23705188,87838.0,87836.0,0.11389709]
[1765981737616,0.22769427,87838.0,87836.0,0.11389709]
[1765981737797,0.23906656,87842.0,87840.0,0.07565992]
[1765981737798,0.0113842,87841.0,87840.0,0.07565992]
[1765981738003,0.01138368,87845.0,87844.0,0.10473007]
[1765981738004,0.23905987,87845.0,87844.0,0.10473007]
[1765981738221,0.2390518,87848.0,87841.0,0.23906638]
[1765981738222,0.22767353,87846.0,87845.0,0.10473007]
[1765981738422,0.01138342,87847.0,87846.0,0.16159829]
[1765981738423,0.23905239,87847.0,87846.0,0.16159829]
[1765981739023,0.01138329,87848.0,87847.0,0.10473007]
[1765981739221,0.23904925,87848.0,87847.0,0.10473007]
[1765981739794,0.23904925,87848.0,87847.0,0.07556007]
[1765981740443,0.00011237,87850.0,87849.0,0.34135166]
[1765981740564,0.00011237,87850.0,87849.0,0.36009166]
[1765981740772,0.00011237,87850.0,87849.0,0.38926166]
[1765981741250,0.22777315,87850.0,87849.0,0.11368829]
[1765981741452,0.22777315,87850.0,87843.0,0.24042497]
[1765981741453,0.22767633,87844.0,87843.0,0.11505183]
[1765981741583,0.22767633,87844.0,87817.0,0.01385]
[1765981741584,0.22769447,87837.0,87835.0,0.11368829]
[1765981741988,0.01138446,87839.0,87838.0,0.05682007]
[1765981742188,0.23907584,87839.0,87838.0,0.07556007]
[1765981742443,0.24572524,87841.0,87840.0,0.10473007]
[1765981742444,0.25710944,87841.0,87840.0,0.10473007]
[1765981742648,0.36476637,87860.0,87840.0,0.10473007]
[1765981742649,0.01138278,87852.0,87847.0,0.11368829]
[1765981742827,0.23904893,87849.0,87848.0,0.05682007]
[1765981743040,0.25708893,87849.0,87848.0,0.05682007]
[1765981743521,0.22777541,87850.0,87848.0,0.05682007]
[1765981743522,0.00011237,87850.0,87849.0,0.38926166]
[1765981744261,0.00011237,87850.0,87849.0,0.3906252]
[1765981744640,0.00011237,87850.0,87843.0,0.01922]
[1765981744641,0.22767672,87844.0,87843.0,0.01922]
[1765981744847,0.00011237,87850.0,87844.0,0.01922]
[1765981744848,0.01138342,87847.0,87844.0,0.01922]
[1765981745091,0.22766593,87849.0,87848.0,0.13290829]
[1765981745485,0.22766593,87849.0,87848.0,0.11368829]
[1765981746769,0.22766593,87849.0,87848.0,0.11468829]
[1765981746967,0.22777366,87850.0,87849.0,0.05682007]
[1765981747173,0.24721337,87849.0,87848.0,0.001]
[1765981747580,0.24721337,87849.0,87848.0,0.002]
[1765981748007,0.00011237,87850.0,87849.0,0.38970166]
[1765981749420,0.00011237,87850.0,87849.0,0.3910652]
[1765981750035,0.00011237,87850.0,87849.0,0.3930652]
[1765981750446,0.00011237,87850.0,87849.0,0.3910652]
[1765981750846,0.00011237,87850.0,87849.0,0.3930652]
[1765981751842,0.00011237,87850.0,87849.0,0.3950652]
[1765981754384,0.22777315,87850.0,87849.0,0.16740183]
[1765981754588,0.00011237,87850.0,87849.0,0.13827183]
[1765981754790,0.00011237,87850.0,87849.0,0.3659352]
[1765981755389,0.00011237,87850.0,87849.0,0.3929352]
[1765981755738,0.00011237,87850.0,87849.0,0.3909352]
[1765981755961,0.00011237,87850.0,87849.0,0.16327183]
[1765981756177,0.00011237,87850.0,87849.0,0.16227183]
[1765981756536,0.24677315,87850.0,87849.0,0.003]
[1765981757421,0.26823315,87850.0,87849.0,0.003]
[1765981758000,0.26823315,87850.0,87849.0,0.001]
[1765981758803,0.22769188,87838.0,87837.0,0.05682007]
[1765981759198,0.22769188,87838.0,87826.0,0.22772076]
[1765981759199,0.019,87837.0,87829.0,0.01385]
[1765981759386,0.26923191,87837.0,87833.0,0.11368829]
[1765981759581,0.24669447,87837.0,87834.0,0.05691992]
[1765981759804,0.24669447,87837.0,87830.0,0.05691992]
[1765981760157,0.24669447,87837.0,87832.0,0.01138537]
[1765981760300,0.24669447,87837.0,87836.0,0.05712872]
[1765981760498,0.24669447,87837.0,87836.0,0.0002088]
[1765981760721,0.24669447,87837.0,87836.0,0.05712872]
[1765981760965,0.01804,87845.0,87838.0,0.05691992]
[1765981761167,0.01804,87845.0,87843.0,0.04474]
[1765981761168,0.01138381,87844.0,87843.0,0.04474]
[1765981761373,0.23905697,87846.0,87845.0,0.15842829]
[1765981761563,0.23905697,87846.0,87845.0,0.13142829]
[1765981762066,0.23905697,87846.0,87845.0,0.11368829]
[1765981762208,0.23905697,87846.0,87838.0,0.00136354]
[1765981762209,0.22768929,87839.0,87838.0,0.11505183]
[1765981762407,0.22768929,87839.0,87838.0,0.00136354]
[1765981763416,0.22768929,87839.0,87838.0,0.00236354]
[1765981763619,0.22768929,87839.0,87838.0,0.00336354]
[1765981763874,0.22768929,87839.0,87838.0,0.05928346]
[1765981764025,0.22768929,87839.0,87838.0,0.05828346]
[1765981764220,0.22768929,87839.0,87838.0,0.00236354]
[1765981765333,0.22768929,87839.0,87838.0,0.07692361]
[1765981765545,0.22768695,87840.0,87839.0,0.05682007]
[1765981766197,0.01138355,87846.0,87844.0,0.04474]
[1765981766534,0.02088,87863.0,87846.0,0.05682007]
[1765981766535,0.22766856,87847.0,87846.0,0.05682007]
[1765981766746,0.25719707,87850.0,87849.0,0.07456007]
[1765981767669,0.25719707,87850.0,87849.0,0.01774]
[1765981767867,0.22766856,87847.0,87846.0,0.11368829]
[1765981768076,0.22767902,87843.0,87841.0,0.0113842]
[1765981768274,0.22767902,87843.0,87842.0,0.07456007]
[1765981769470,0.23906103,87844.0,87842.0,0.01774]
[1765981769662,0.23906103,87844.0,87843.0,0.05682007]
[1765981770635,0.23906831,87841.0,87840.0,0.13142829]
[1765981771240,0.23906831,87841.0,87840.0,0.11368829]
[1765981772326,0.23906831,87841.0,87838.0,0.00136354]
[1765981772327,0.22768929,87839.0,87838.0,0.00136354]
[1765981772714,0.22768929,87839.0,87838.0,0.05828346]
[1765981773457,0.22768929,87839.0,87838.0,0.00136354]
[1765981773653,0.22768929,87839.0,87838.0,0.00336354]
[1765981774278,0.22768929,87839.0,87838.0,0.06018361]
[1765981775889,0.22768711,87840.0,87839.0,0.10425007]
[1765981777119,0.22768711,87840.0,87839.0,0.07671007]
[1765981777323,0.22768711,87840.0,87839.0,0.07771007]
[1765981777572,0.22768711,87840.0,87839.0,0.002]
[1765981778487,0.28440711,87840.0,87839.0,0.002]
[1765981778650,0.28440711,87840.0,87839.0,0.001]
[1765981778854,0.28440711,87840.0,87839.0,0.002]
[1765981779051,0.28440711,87840.0,87839.0,0.001]
[1765981779382,0.26428711,87840.0,87839.0,0.001]
[1765981779584,0.28434711,87840.0,87839.0,0.001]
[1765981780223,0.26428711,87840.0,87839.0,0.001]
[1765981780379,0.24572711,87840.0,87839.0,0.001]
[1765981781640,0.26428711,87840.0,87839.0,0.001]
[1765981782064,0.24572711,87840.0,87839.0,0.001]
[1765981782453,0.22768711,87840.0,87839.0,0.001]
[1765981782652,0.24572711,87840.0,87839.0,0.001]
[1765981783563,0.2457267,87840.0,87839.0,0.04843]
[1765981783928,0.2457267,87840.0,87839.0,0.001]
[1765981785154,0.2276867,87840.0,87839.0,0.001]
[1765981786642,0.01138381,87844.0,87839.0,0.001]
[1765981786643,0.01138381,87844.0,87843.0,0.01889]
[1765981786886,0.23905252,87847.0,87846.0,0.04743]
[1765981787194,0.4612466,87867.0,87849.0,0.33191344]
[1765981787195,0.00011237,87850.0,87849.0,0.33191344]
[1765981788254,0.22777315,87850.0,87849.0,0.10425007]
[1765981788454,0.22777315,87850.0,87849.0,0.05682007]
[1765981789182,0.22777315,87850.0,87849.0,0.05882007]
[1765981789798,0.22777315,87850.0,87849.0,0.05682007]
[1765981789998,0.22777315,87850.0,87849.0,0.05782007]
[1765981790202,0.22777315,87850.0,87849.0,0.05882007]
[1765981790403,0.22777315,87850.0,87849.0,0.05782007]
[1765981790747,0.22777315,87850.0,87849.0,0.05882007]
[1765981791038,0.22777315,87850.0,87849.0,0.002]
[1765981791197,0.24633315,87850.0,87849.0,0.002]
[1765981792018,0.24633315,87850.0,87849.0,0.001]
[1765981792216,0.22777315,87850.0,87849.0,0.16211829]
[1765981792851,0.22777315,87850.0,87839.0,0.11368829]
[1765981792852,0.2390721,87840.0,87839.0,0.11368829]
[1765981794535,0.22769447,87837.0,87836.0,0.11389709]
[1765981795290,0.22769447,87837.0,87836.0,0.16132709]
[1765981795473,0.23907375,87839.0,87838.0,0.05691992]
[1765981795678,0.22769447,87837.0,87836.0,0.11489709]
[1765981796510,0.22769447,87837.0,87836.0,0.11389709]
[1765981796685,0.22769447,87837.0,87836.0,0.13278709]
[1765981797043,0.22769447,87837.0,87836.0,0.11489709]
[1765981798194,0.22769188,87838.0,87837.0,0.11368829]
[1765981799059,0.01138407,87842.0,87837.0,0.12507301]
[1765981799250,0.23907308,87840.0,87839.0,0.05691992]
[1765981799442,0.23907308,87840.0,87839.0,0.10425007]
[1765981799876,0.23907308,87840.0,87839.0,0.07571007]
[1765981800187,0.24625447,87837.0,87836.0,0.0002088]
[1765981800754,0.26502447,87837.0,87836.0,0.0002088]
[1765981800973,0.57376447,87837.0,87836.0,0.0002088]
[1765981801408,0.57376447,87837.0,87799.0,0.0004]
[1765981801409,0.26505524,87802.0,87799.0,0.0004]
[1765981801841,0.24634524,87802.0,87799.0,0.0004]
[1765981802010,0.26499524,87802.0,87799.0,0.0004]
[1765981802239,0.01138822,87810.0,87808.0,0.01889]
[1765981802240,0.23915609,87809.0,87808.0,0.01889]
[1765981802439,0.23915609,87809.0,87801.0,0.07216346]
[1765981802440,0.011389,87804.0,87801.0,0.07216346]
[1765981802599,0.01138861,87807.0,87801.0,0.07216346]
[1765981802600,0.02253744,87807.0,87806.0,0.01889]
[1765981802800,0.30935,87823.0,87806.0,0.01889]
[1765981802801,0.01138653,87823.0,87817.0,0.01889]
[1765981802998,0.01138653,87823.0,87817.0,0.13394183]
[1765981803199,0.01856,87818.0,87817.0,0.00136354]
[1765981803423,0.23325011,87828.0,87822.0,0.01138666]
[1765981803598,0.01138576,87829.0,87824.0,0.07580992]
[1765981803599,0.22772597,87825.0,87824.0,0.07580992]
[1765981803810,0.22772597,87825.0,87817.0,0.01275085]
[1765981803811,0.24628374,87818.0,87817.0,0.11505183]
[1765981804035,0.01138809,87811.0,87807.0,0.11368829]
[1765981804211,0.22775692,87813.0,87812.0,0.11368829]
[1765981804212,0.23914475,87813.0,87812.0,0.11368829]
[1765981805034,0.01138692,87820.0,87812.0,0.11368829]
[1765981805035,0.23911439,87825.0,87824.0,0.01726]